bitfinex/quotes_SOLUSD_20240613
["timestamp","ask_amount","ask_price","bid_price","bid_amount"]
[1718306236809,7.63,148.53,148.52,2.4911]
[1718306238006,7.63,148.54,148.53,2.491]
[1718306238183,7.8,148.54,148.53,2.491]
[1718306238383,0.17,148.54,148.53,2.491]
[1718306238583,7.8,148.54,148.53,2.491]
[1718306239817,0.17,148.55,148.54,2.4909]
[1718306240019,7.63,148.56,148.54,2.4909]
[1718306241106,0.51,148.57,148.54,2.4909]
[1718306241310,7.63,148.56,148.54,2.4909]
[1718306241715,0.51,148.57,148.54,2.4908]
[1718306242205,7.63,148.56,148.54,2.4908]
[1718306242681,0.51,148.57,148.54,2.4908]
[1718306242884,7.63,148.56,148.54,2.4908]
[1718306244012,0.51,148.57,148.54,2.4908]
[1718306244194,7.63,148.56,148.54,2.4908]
[1718306244511,7.63,148.56,148.55,2.4907]
[1718306244697,7.63,148.56,148.54,2.4908]
[1718306245005,8.14,148.57,148.55,2.4907]
[1718306245180,7.63,148.57,148.56,2.4905]
[1718306245388,16.0889,148.6,148.56,2.4905]
[1718306245603,7.63,148.59,148.56,2.4905]
[1718306248120,0.51,148.6,148.56,2.4905]
[1718306248294,7.63,148.59,148.56,2.4905]
[1718306248495,0.34,148.6,148.55,29.9628]
[1718306248726,7.63,148.61,148.59,2.49]
[1718306248895,7.63,148.61,148.58,2.4901]
[1718306249391,7.63,148.61,148.57,22.4903]
[1718306249583,7.63,148.61,148.57,2.4903]
[1718306249788,7.63,148.6,148.58,2.4902]
[1718306250004,22.6782,148.64,148.58,2.4902]
[1718306250304,45.51,148.63,148.6,2.4897]
[1718306250512,7.63,148.62,148.6,2.4897]
[1718306251004,7.63,148.62,148.59,2.4899]
[1718306251407,7.63,148.61,148.59,2.4899]
[1718306251906,45.51,148.63,148.57,12.4516]
[1718306252213,7.63,148.62,148.59,2.4899]
[1718306252515,45.51,148.63,148.6,2.4898]
[1718306252705,36.8023,148.68,148.61,2.4896]
[1718306252706,52.8126,148.68,148.61,2.4896]
[1718306252907,7.63,148.63,148.61,2.4896]
[1718306253409,7.63,148.64,148.61,2.4896]
[1718306254012,52.8126,148.68,148.62,2.4895]
[1718306254191,7.63,148.64,148.62,2.4895]
[1718306254394,52.8126,148.68,148.63,2.4893]
[1718306254717,7.63,148.65,148.63,2.4893]
[1718306254900,16.0103,148.68,148.61,12.4483]
[1718306255226,7.63,148.65,148.63,2.4893]
[1718306256198,0.17,148.66,148.63,2.4893]
[1718306256413,7.63,148.65,148.63,2.4893]
[1718306256627,0.51,148.67,148.64,2.4892]
[1718306256801,8.14,148.67,148.64,2.4892]
[1718306257410,0.51,148.67,148.64,2.4892]
[1718306257632,8.14,148.67,148.64,2.4892]
[1718306257922,7.63,148.66,148.64,2.4892]
[1718306258116,7.63,148.66,148.63,2.4892]
[1718306260929,7.63,148.66,148.64,2.4892]
[1718306261236,7.63,148.66,148.63,2.4892]
[1718306261407,0.17,148.65,148.61,2.4896]
[1718306261608,7.63,148.64,148.61,2.4896]
[1718306261923,7.63,148.64,148.62,2.4895]
[1718306262627,0.51,148.65,148.63,2.4894]
[1718306262795,8.14,148.65,148.63,2.4894]
[1718306263125,8.14,148.65,148.61,12.4486]
[1718306263126,8.14,148.65,148.64,2.4892]
[1718306263339,0.17,148.65,148.64,2.4892]
[1718306263701,7.63,148.66,148.64,2.4892]
[1718306264528,0.17,148.67,148.65,2.489]
[1718306264715,7.63,148.66,148.65,2.489]
[1718306265026,7.8,148.66,148.65,2.489]
[1718306265524,7.8,148.66,148.64,2.4891]
[1718306266534,0.17,148.66,148.64,2.4891]
[1718306268309,7.8,148.66,148.64,2.4891]
[1718306272226,7.8,148.66,148.65,2.489]
[1718306272921,7.97,148.68,148.66,2.4888]
[1718306273128,0.17,148.67,148.65,2.4889]
[1718306276638,7.8,148.67,148.65,2.4889]
[1718306276825,7.8,148.67,148.64,2.4891]
[1718306278035,0.17,148.67,148.64,2.4891]
[1718306278328,7.8,148.67,148.64,2.4891]
[1718306280236,0.34,148.68,148.62,25.0566]
[1718306280237,0.17,148.68,148.62,23.4372]
[1718306280416,30.52,148.75,148.66,2.4888]
[1718306280417,3.3371378,148.71,148.66,2.4888]
[1718306280735,7.63,148.69,148.66,2.4888]
[1718306281035,10.1184,148.69,148.65,2.4889]
[1718306281238,2.4884,148.69,148.65,2.4889]
[1718306281451,47.9982,148.7,148.66,2.4888]
[1718306281619,7.63,148.68,148.66,2.4888]
[1718306281821,7.63,148.68,148.65,2.4889]
[1718306282353,7.63,148.68,148.66,2.4888]
[1718306283124,0.8490378,148.71,148.65,14.271]
[1718306283333,0.8490378,148.71,148.7,2.4882]
[1718306288444,0.8490378,148.71,148.7,24.8821]
[1718306288736,0.8490378,148.71,148.7,52.5121]
[1718306289129,258.35045216,148.83,148.7,52.5121]
[1718306289130,253.1,148.83,148.7,27.63]
[1718306289334,253.1,148.83,148.76,9.9485]
[1718306289538,253.1,148.83,148.79,2.4866]
[1718306289728,7.63,148.8,148.79,2.4866]
[1718306289931,253.1,148.83,148.79,2.4866]
[1718306290134,7.63,148.81,148.79,2.4866]
[1718306292044,255.5861,148.83,148.79,2.4866]
[1718306292246,7.63,148.81,148.79,2.4866]
[1718306292450,0.17,148.82,148.79,2.4866]
[1718306292651,7.63,148.81,148.79,2.4866]
[1718306292839,7.63,148.81,148.78,2.4868]
[1718306293345,47.9962,148.82,148.76,17.5785]
[1718306293346,7.63,148.79,148.76,2.4871]
[1718306293547,7.63,148.78,148.76,2.4871]
[1718306293941,10.2871,148.77,148.73,2.4876]
[1718306294154,7.63,148.76,148.73,2.4876]
[1718306294330,7.63,148.74,148.7,6.4121]
[1718306294531,2.4876,148.74,148.69,15.8532]
[1718306294759,7.63,148.72,148.7,2.4881]
[1718306294953,7.63,148.72,148.71,2.488]
[1718306295257,7.63,148.72,148.66,26.5131]
[1718306295258,10.1179,148.72,148.66,26.5131]
[1718306295436,2.8278,148.73,148.69,2.4883]
[1718306296325,0.34,148.73,148.69,2.4883]
[1718306296953,0.34,148.73,148.7,2.4881]
[1718306297175,0.34,148.73,148.68,22.4884]
[1718306297397,0.17,148.72,148.69,2.4883]
[1718306299963,7.63,148.74,148.7,12.4409]
[1718306300140,7.63,148.74,148.73,2.4877]
[1718306300533,16.5353,148.78,148.7,7.63]
[1718306300759,2.4866,148.8,148.75,2.4873]
[1718306300943,0.77,148.76,148.75,2.4873]
[1718306301456,7.63,148.77,148.75,2.4873]
[1718306302459,7.63,148.77,148.74,2.4874]
[1718306302953,7.63,148.76,148.74,2.4874]
[1718306303156,7.63,148.76,148.73,2.4876]
[1718306304758,7.63,148.76,148.74,2.4875]
[1718306305255,10.1172,148.76,148.72,2.4878]
[1718306305462,53.14,148.75,148.72,2.4878]
[1718306305637,7.63,148.75,148.73,2.4877]
[1718306306652,0.34,148.78,148.74,2.4875]
[1718306306956,7.63,148.76,148.74,2.4875]
[1718306307964,7.63,148.76,148.73,3.83074225]
[1718306308553,2.657,148.77,148.73,2.4876]
[1718306308857,7.63,148.76,148.73,2.4876]
[1718306310856,7.63,148.76,148.74,2.4875]
[1718306311038,7.63,148.76,148.75,2.4873]
[1718306311239,7.63,148.76,148.74,2.4874]
[1718306311449,7.63,148.76,148.75,2.4873]
[1718306312534,7.63,148.76,148.74,2.4874]
[1718306312856,7.63,148.76,148.75,2.4873]
[1718306313058,7.63,148.76,148.74,4.975]
[1718306313239,7.8,148.77,148.76,2.4872]
[1718306314158,7.8,148.77,148.75,2.4873]
[1718306315353,7.63,148.76,148.73,2.4875]
[1718306315559,7.63,148.76,148.74,2.4875]
[1718306315781,0.17,148.77,148.74,2.4875]
[1718306316075,7.63,148.76,148.74,2.4875]
[1718306318162,0.17,148.77,148.74,2.4875]
[1718306318335,7.63,148.76,148.74,2.4875]
[1718306318863,0.17,148.77,148.75,2.4873]
[1718306319073,7.8,148.77,148.75,2.4873]
[1718306319363,0.17,148.77,148.75,2.4873]
[1718306319569,7.8,148.77,148.75,2.4873]
[1718306319865,7.8,148.77,148.74,2.4874]
[1718306320035,7.63,148.76,148.74,2.4875]
[1718306320240,0.17,148.77,148.73,4.9753]
[1718306320441,7.63,148.76,148.73,4.9753]
[1718306320741,0.17,148.77,148.75,2.4873]
[1718306320959,7.63,148.76,148.75,2.4873]
[1718306321173,7.97,148.76,148.75,2.4873]
[1718306321342,7.97,148.76,148.72,7.4636]
[1718306321539,0.34,148.75,148.72,2.4878]
[1718306321846,7.63,148.73,148.72,2.4878]
[1718306325368,53.14,148.73,148.72,2.4878]
[1718306328086,45.51,148.73,148.72,2.4878]
[1718306328468,15.0578,148.77,148.72,12.4392]
[1718306328661,7.63,148.75,148.74,2.4874]
[1718306328869,45.17,148.76,148.75,2.4873]
[1718306329171,52.8,148.76,148.75,2.4873]
[1718306329890,52.8,148.76,148.74,2.4874]
[1718306330097,7.63,148.75,148.74,2.4874]
[1718306331973,45.17,148.76,148.74,2.4874]
[1718306332287,7.63,148.75,148.74,2.4874]
[1718306332907,45.17,148.76,148.75,2.4873]
[1718306333202,53.14,148.76,148.75,2.4873]
[1718306333788,45.51,148.76,148.75,2.4873]
[1718306333996,53.14,148.76,148.74,2.4874]
[1718306335102,0.34,148.76,148.75,2.4873]
[1718306336999,0.34,148.76,148.74,2.4874]
[1718306337174,0.34,148.76,148.75,2.4873]
[1718306337375,2.4868,148.79,148.75,2.4873]
[1718306337595,7.63,148.77,148.75,2.4873]
[1718306338393,8.14,148.78,148.75,2.4873]
[1718306339298,0.51,148.78,148.76,2.4872]
[1718306339488,8.14,148.78,148.75,2.4872]
[1718306340108,8.14,148.78,148.76,2.4872]
[1718306340289,8.14,148.78,148.75,2.4873]
[1718306340488,7.63,148.77,148.75,2.4873]
[1718306341002,8.14,148.78,148.76,2.4872]
[1718306341888,0.51,148.78,148.76,2.4872]
[1718306342091,8.14,148.78,148.76,2.4872]
[1718306342716,0.51,148.78,148.76,2.4872]
[1718306342915,45.0,148.8,148.77,2.487]
[1718306343091,253.1,148.83,148.79,2.4866]
[1718306343294,253.1,148.83,148.8,2.4865]
[1718306343594,7.63,148.82,148.79,2.4866]
[1718306345015,7.63,148.81,148.78,2.4867]
[1718306346018,256.0961,148.83,148.79,2.4867]
[1718306346195,7.63,148.81,148.79,2.4867]
[1718306347409,7.63,148.81,148.78,2.4868]
[1718306347719,7.63,148.81,148.77,24.974]
[1718306347919,7.63,148.81,148.79,2.4867]
[1718306349404,45.0,148.82,148.79,2.4867]
[1718306349608,7.63,148.81,148.8,2.4865]
[1718306350110,45.0,148.82,148.8,2.4865]
[1718306350312,7.63,148.81,148.8,2.4865]
[1718306351627,10.4564,148.81,148.77,2.487]
[1718306351796,7.63,148.78,148.76,2.4871]
[1718306351997,7.63,148.77,148.75,2.4873]
[1718306352618,7.63,148.77,148.76,2.4872]
[1718306353941,7.63,148.78,148.76,2.4872]
[1718306355250,7.63,148.78,148.77,2.487]
[1718306355538,53.14,148.78,148.77,2.487]
[1718306356449,53.14,148.78,148.75,2.4872]
[1718306356619,53.14,148.78,148.74,2.4874]
[1718306356620,7.63,148.76,148.74,2.4874]
[1718306356950,7.63,148.75,148.73,2.4876]
[1718306357118,7.63,148.74,148.72,2.4878]
[1718306357441,7.63,148.73,148.69,12.4416]
[1718306357657,7.63,148.73,148.71,2.4879]
[1718306358147,7.63,148.73,148.72,2.4878]
[1718306358529,7.97,148.73,148.72,2.4878]
[1718306358724,0.34,148.73,148.72,2.4878]
[1718306359059,0.17,148.77,148.72,4.9757]
[1718306359217,45.17,148.77,148.74,2.4874]
[1718306359420,15.7938,148.8,148.75,4.9747]
[1718306359731,7.63,148.78,148.77,2.4869]
[1718306360345,7.63,148.78,148.76,2.4871]
[1718306360732,0.17,148.77,148.76,2.4871]
[1718306361722,7.8,148.77,148.68,15.4863]
[1718306361923,7.63,148.72,148.68,17.9748]
[1718306362124,7.97,148.71,148.67,2.4886]
[1718306362427,7.63,148.7,148.68,2.4885]
[1718306362631,7.63,148.7,148.64,32.7051]
[1718306362632,7.63,148.69,148.66,2.4887]
[1718306362834,7.63,148.68,148.66,2.4887]
[1718306363623,7.63,148.68,148.67,2.4887]
[1718306365155,7.63,148.69,148.67,2.4887]
[1718306365520,7.63,148.68,148.67,2.4887]
[1718306368336,0.17,148.7,148.66,12.4443]
[1718306368554,0.34,148.71,148.69,2.4883]
[1718306368741,7.63,148.7,148.69,2.4883]
[1718306368936,7.63,148.7,148.68,2.4884]
[1718306369161,7.63,148.69,148.68,2.4884]
[1718306369459,0.51,148.72,148.69,2.4883]
[1718306369660,7.63,148.7,148.68,2.4884]
[1718306369959,7.63,148.69,148.68,2.4884]
[1718306370263,0.51,148.72,148.69,2.4883]
[1718306370571,7.63,148.7,148.69,2.4883]
[1718306371562,33.0074,148.75,148.7,2.4881]
[1718306371759,7.63,148.71,148.7,2.4881]
[1718306373456,7.8,148.71,148.66,22.3993]
[1718306373655,0.17,148.71,148.68,2.4884]
[1718306373955,7.63,148.69,148.68,2.4884]
[1718306375241,7.63,148.7,148.69,2.4883]
[1718306375669,7.63,148.74,148.73,2.4876]
[1718306377260,7.63,148.74,148.72,2.4877]
[1718306377569,2.4871,148.77,148.73,2.4877]
[1718306377772,0.51,148.76,148.73,2.4877]
[1718306378082,7.63,148.74,148.73,2.4877]
[1718306378242,7.63,148.74,148.72,2.4877]
[1718306380272,0.51,148.76,148.72,2.4877]
[1718306380649,7.63,148.73,148.72,2.4877]
[1718306381272,2.487,148.78,148.72,4.9757]
[1718306381449,7.63,148.74,148.73,2.4876]
[1718306388484,7.63,148.76,148.73,14.9259]
[1718306388685,7.63,148.76,148.75,2.4873]
[1718306392887,2.4867,148.79,148.75,2.4873]
[1718306393198,0.17,148.78,148.76,2.4872]
[1718306393387,7.63,148.77,148.76,2.4872]
[1718306394599,7.63,148.77,148.75,2.4872]
[1718306395188,7.63,148.77,148.74,12.4376]
[1718306395405,7.63,148.77,148.76,2.4872]
[1718306395903,0.34,148.8,148.77,2.487]
[1718306396076,7.63,148.78,148.77,2.487]
[1718306396485,30.52,148.82,148.78,2.4868]
[1718306396785,7.63,148.79,148.78,2.4868]
[1718306397191,7.63,148.79,148.77,2.4869]
[1718306397502,7.63,148.78,148.77,2.4869]
[1718306399908,7.63,148.79,148.77,2.4869]
[1718306400614,2.4864,148.81,148.77,2.487]
[1718306400812,7.63,148.79,148.77,2.487]
[1718306401112,76.03,148.82,148.73,20.0]
[1718306401113,10.1169,148.78,148.73,20.0]
[1718306401288,7.63,148.76,148.74,2.4874]
[1718306401484,7.63,148.76,148.73,22.4875]
[1718306401703,7.63,148.76,148.74,2.4875]
[1718306401893,0.17,148.8,148.75,2.4873]
[1718306402206,0.17,148.8,148.76,2.4871]
[1718306402207,7.63,148.77,148.76,2.4871]
[1718306402504,7.63,148.79,148.78,2.4868]
[1718306403282,7.63,148.79,148.77,2.4869]
[1718306403488,7.63,148.79,148.78,2.4868]
[1718306403909,7.63,148.79,148.77,2.4869]
[1718306404291,0.34,148.81,148.77,2.4869]
[1718306404485,16.2986,148.84,148.77,4.974]
[1718306404717,18.7845,148.84,148.79,2.4865]
[1718306404892,7.63,148.8,148.79,2.4865]
[1718306407093,16.2986,148.84,148.81,2.4863]
[1718306407294,7.63,148.82,148.81,2.4863]
[1718306407714,7.63,148.82,148.8,2.4864]
[1718306408037,45.51,148.83,148.76,7.63]
[1718306408038,7.63,148.81,148.76,12.4354]
[1718306408236,2.4862,148.82,148.78,2.4867]
[1718306408539,7.63,148.79,148.78,2.4867]
[1718306411118,30.52,148.82,148.79,2.4866]
[1718306411302,45.51,148.81,148.79,2.4866]
[1718306411510,7.63,148.8,148.79,2.4866]
[1718306418808,7.8,148.8,148.79,2.4866]
[1718306419418,7.8,148.8,148.75,14.9239]
[1718306419638,7.8,148.8,148.77,2.487]
[1718306419639,45.51,148.79,148.77,2.487]
[1718306419820,7.63,148.78,148.75,2.4872]
[1718306420015,0.17,148.77,148.76,2.4872]
[1718306420237,7.8,148.77,148.76,2.4872]
[1718306421120,7.97,148.77,148.76,2.4872]
[1718306421524,45.17,148.79,148.78,2.4868]
[1718306421525,0.17,148.79,148.78,2.4868]
[1718306421836,21.72171404,148.84,148.8,2.4864]
[1718306422045,16.2986,148.84,148.81,2.4863]
[1718306422336,7.63,148.82,148.77,12.4345]
[1718306422510,7.63,148.8,148.79,2.4866]
[1718306422915,9.7155378,148.86,148.79,9.9466]
[1718306423149,9.7155378,148.86,148.82,2.4862]
[1718306423315,7.63,148.83,148.81,2.4862]
[1718306423515,7.63,148.82,148.81,2.4862]
[1718306425750,2.4857,148.85,148.81,2.4862]
[1718306425959,7.63,148.82,148.81,2.4862]
[1718306426919,7.63,148.83,148.81,2.4862]
[1718306427546,0.8490378,148.86,148.8,1.34386101]
[1718306427547,0.8490378,148.86,148.8,6.31676101]
[1718306427744,0.8490378,148.86,148.83,2.4859]
[1718306427918,7.63,148.84,148.83,2.4859]
[1718306428237,7.63,148.85,148.83,2.4859]
[1718306428736,0.8490378,148.86,148.83,2.4859]
[1718306428933,7.97,148.85,148.83,2.4859]
[1718306430047,7.63,148.84,148.82,2.4861]
[1718306430347,0.8490378,148.86,148.81,8.8027546]
[1718306430548,0.8490378,148.86,148.84,2.4858]
[1718306430751,8.4790378,148.86,148.84,2.4858]
[1718306431257,0.8490378,148.86,148.84,2.4858]
[1718306431425,0.8490378,148.86,148.83,1.3435741]
[1718306431426,8.4790378,148.86,148.85,2.4857]
[1718306431625,0.8490378,148.86,148.85,2.4857]
[1718306434550,8.4790378,148.86,148.84,2.4858]
[1718306434856,7.63,148.85,148.82,38.5504]
[1718306435149,0.8490378,148.86,148.82,38.5504]
[1718306435348,7.63,148.84,148.82,20.0]
[1718306435556,7.63,148.84,148.82,2.4862]
[1718306435934,7.63,148.83,148.82,2.4862]
[1718306436145,7.63,148.84,148.82,2.4862]
[1718306436645,7.63,148.84,148.83,2.486]
[1718306437463,0.8490378,148.86,148.83,2.486]
[1718306437664,0.8490378,148.86,148.82,12.431]
[1718306437872,7.63,148.85,148.84,2.4858]
[1718306443367,8.4790378,148.86,148.82,12.4309]
[1718306444091,8.4790378,148.86,148.84,2.4857]
[1718306444999,0.8490378,148.86,148.82,4.9724]
[1718306445202,7.63,148.85,148.83,2.486]
[1718306445698,0.8490378,148.86,148.84,2.4858]
[1718306445869,7.63,148.85,148.84,2.4858]
[1718306446562,0.8490378,148.86,148.84,2.4858]
[1718306446881,8.4790378,148.86,148.84,2.4858]
[1718306447579,0.8490378,148.86,148.84,2.4858]
[1718306447800,8.4790378,148.86,148.84,2.4858]
[1718306448100,0.8490378,148.86,148.84,2.4858]
[1718306448287,7.63,148.85,148.83,2.4859]
[1718306450212,0.8490378,148.86,148.85,2.4857]
[1718306450378,1.1890378,148.86,148.84,2.4857]
[1718306450578,8.8190378,148.86,148.84,2.4857]
[1718306451892,1.1890378,148.86,148.84,2.4857]
[1718306452092,8.4790378,148.86,148.85,2.4857]
[1718306452382,8.4790378,148.86,148.84,2.4857]
[1718306453810,8.4790378,148.86,148.83,2.4859]
[1718306454101,7.63,148.85,148.83,2.4859]
[1718306454489,7.63,148.84,148.81,2.4862]
[1718306454693,7.63,148.83,148.81,2.4862]
[1718306455286,7.63,148.83,148.82,2.4862]
[1718306457712,7.63,148.83,148.81,2.4863]
[1718306457915,3.5046378,148.86,148.82,2.4862]
[1718306458117,7.63,148.83,148.82,2.4862]
[1718306458620,7.63,148.83,148.81,2.4862]
[1718306459118,7.63,148.83,148.82,2.4862]
[1718306460510,52.8,148.83,148.81,2.4863]
[1718306460719,7.97,148.82,148.81,2.4863]
[1718306462925,53.14,148.82,148.77,14.9218]
[1718306463228,7.63,148.78,148.75,2.4872]
[1718306463393,7.63,148.76,148.75,2.4872]
[1718306465110,7.63,148.76,148.74,12.4374]
[1718306465313,7.63,148.76,148.75,2.4873]
[1718306465508,7.63,148.77,148.76,2.4871]
[1718306467726,0.17,148.81,148.77,2.487]
[1718306467924,7.63,148.78,148.77,2.487]
[1718306468123,7.97,148.78,148.76,2.4871]
[1718306468339,7.63,148.77,148.76,2.4871]
[1718306470537,7.63,148.77,148.75,2.4873]
[1718306470745,0.34,148.78,148.76,2.4872]
[1718306470947,7.63,148.77,148.76,2.4872]
[1718306471130,0.34,148.78,148.76,2.4872]
[1718306471336,7.63,148.77,148.75,2.4872]
[1718306472027,7.63,148.76,148.73,2.4876]
[1718306472246,7.63,148.75,148.73,2.4876]
[1718306472544,7.63,148.75,148.74,2.4875]
[1718306476162,7.63,148.75,148.73,2.4876]
[1718306476360,7.63,148.74,148.73,2.4876]
[1718306476538,7.8,148.74,148.7,4.9762]
[1718306476750,7.63,148.72,148.71,2.488]
[1718306478154,7.97,148.75,148.72,2.4878]
[1718306478337,7.63,148.73,148.72,2.4878]
[1718306478538,53.14,148.73,148.72,2.4878]
[1718306480354,53.14,148.73,148.71,2.4879]
[1718306480658,7.8,148.72,148.71,2.4879]
[1718306484077,45.34,148.73,148.72,2.4878]
[1718306484363,53.14,148.73,148.72,2.4878]
[1718306485249,15.9512,148.77,148.73,2.4876]
[1718306485451,15.9512,148.77,148.72,7.4634]
[1718306485644,2.4866,148.8,148.75,2.4873]
[1718306485845,7.63,148.77,148.76,2.4871]
[1718306486150,7.63,148.77,148.75,2.4873]
[1718306486346,7.63,148.76,148.75,2.4873]
[1718306487055,2.4866,148.8,148.76,2.4872]
[1718306487246,7.63,148.77,148.75,2.4873]
[1718306488768,7.63,148.76,148.74,2.4874]
[1718306488955,7.63,148.75,148.74,2.4874]
[1718306490233,7.63,148.75,148.72,2.4878]
[1718306490459,7.63,148.73,148.72,2.4878]
[1718306490635,7.63,148.73,148.71,2.4879]
[1718306490838,7.63,148.72,148.71,2.4879]
[1718306491480,7.8,148.72,148.71,2.4879]
[1718306491665,7.8,148.72,148.68,7.4656]
[1718306491666,7.8,148.72,148.63,16.0568]
[1718306491866,7.63,148.67,148.66,2.4887]
[1718306494263,7.63,148.67,148.65,20.0]
[1718306494264,7.63,148.67,148.65,2.489]
[1718306494457,7.63,148.66,148.65,2.489]
[1718306494671,7.63,148.66,148.61,9.9582]
[1718306494672,7.63,148.66,148.64,2.4891]
[1718306494846,30.52,148.68,148.65,2.489]
[1718306495044,45.51,148.67,148.65,2.489]
[1718306495352,45.51,148.67,148.66,2.4889]
[1718306495865,53.14,148.67,148.66,2.4889]
[1718306496373,53.14,148.67,148.63,12.4468]
[1718306496374,53.14,148.67,148.65,2.4889]
[1718306496674,7.63,148.66,148.65,2.4889]
[1718306497574,0.17,148.67,148.66,2.4889]
[1718306497873,7.63,148.67,148.65,2.4889]
[1718306498088,7.63,148.66,148.65,2.4889]
[1718306499011,7.63,148.66,148.59,22.6369]
[1718306499150,7.63,148.6,148.59,4.9799]
[1718306499349,7.63,148.6,148.59,2.49]
[1718306500553,45.51,148.65,148.61,2.4896]
[1718306500748,45.51,148.65,148.59,24.98]
[1718306500749,7.63,148.62,148.59,24.98]
[1718306500949,7.63,148.61,148.59,24.98]
[1718306501449,7.63,148.61,148.6,2.4899]
[1718306502469,45.51,148.65,148.6,2.4899]
[1718306502676,45.51,148.65,148.61,2.4896]
[1718306502881,7.63,148.62,148.61,2.4896]
[1718306503963,45.51,148.65,148.62,2.4895]
[1718306504167,7.63,148.63,148.62,2.4895]
[1718306505075,7.63,148.63,148.61,2.4896]
[1718306505277,7.63,148.62,148.61,2.4896]
[1718306508686,30.52,148.68,148.6,7.4695]
[1718306508871,33.0086,148.68,148.63,2.4893]
[1718306509070,7.63,148.64,148.63,2.4893]
[1718306509282,7.63,148.64,148.61,2.4896]
[1718306509467,7.63,148.62,148.61,2.4896]
[1718306509989,2.4888,148.67,148.62,2.4895]
[1718306510185,7.63,148.63,148.62,2.4895]
[1718306510399,13.32581812,148.73,148.6,21.5467]
[1718306510693,13.32581812,148.73,148.66,2.4889]
[1718306510694,7.63,148.67,148.66,2.4889]
[1718306510988,7.63,148.67,148.66,7.4667]
[1718306511288,7.63,148.67,148.66,2.4889]
[1718306512187,2.4879,148.72,148.67,2.4887]
[1718306512490,7.63,148.68,148.67,2.4887]
[1718306512791,7.63,148.68,148.66,2.4888]
[1718306512986,6.324,148.73,148.66,24.9777]
[1718306513170,7.63,148.69,148.68,2.4884]
[1718306513768,2.4876,148.74,148.69,2.4883]
[1718306514001,2.4877,148.73,148.68,2.4885]
[1718306514303,7.63,148.7,148.68,2.4885]
[1718306515086,7.63,148.7,148.69,2.4883]
[1718306515276,45.9279,148.75,148.69,4.9767]
[1718306515480,390.8,148.76,148.71,2.4879]
[1718306515481,7.63,148.72,148.71,2.4879]
[1718306516188,390.8,148.76,148.72,2.4877]
[1718306516371,2.4872,148.76,148.71,2.4879]
[1718306516576,7.63,148.73,148.71,2.4879]
[1718306517088,0.17,148.75,148.72,2.4878]
[1718306517403,0.17,148.76,148.72,2.4878]
[1718306517602,7.63,148.74,148.72,2.4878]
[1718306518134,2.4871,148.77,148.72,2.4878]
[1718306518296,7.63,148.74,148.72,2.4878]